Cogmind - Beta 16 @@@ ROGUE MODE // 2025.10.25 @ 21:41:13 Player: unq Result: Destroyed by JK-NF1(R) with Subdweller Beam Cannon Performance ------------- Evolutions (0) 0 Regions Visited (2) 400 Robots Destroyed (19) 95 Value Destroyed (403) 403 Prototype IDs (0) 0 Alien Tech Used (0) 0 Bonus (0) 0 TOTAL SCORE: 898 Bonus ------- None Cogmind --------- Core Integrity 0/250 Matter 215/300 Energy 34/100 System Corruption 2% Temperature Cool (9) Movement Treading (480) Ox4 Location -10/Subcaves Parts ------- > --- POWER (1) -------- (None) > --- PROPULSION (2) --- Light Treads Subdweller Monowheel > --- UTILITY (2) ------ Huge Storage Unit Weapon Shielding > --- WEAPON (2) ------- Subdweller Laser Subdweller Laser > --- INVENTORY (25) --- Light Treads Light Treads Wheel Subdweller Monowheel Heat Sink Improved Heat Sink Large Storage Unit High-capacity Matter Pod (21) Subdweller Optics Seismic Detector ECM Suite Subdweller Laser Subdweller Machine Gun Subdweller Shrapnel Launcher Mining Laser Multitool Scrap Shield Fragment (49) Scrap Shield Fragment (49) Scrap Shield Fragment (49) Scrap Shield Fragment (48) Scrap Shield Fragment (46) Scrap Shield Fragment (45) Peak State ------------ > --- POWER ------------ Light Nuclear Core > --- PROPULSION ------- Light Treads Subdweller Monowheel > --- UTILITY ---------- Huge Storage Unit Seismic Detector > --- WEAPON ----------- Subdweller Laser Flamer > --- INVENTORY -------- Subdweller Power Source Light Treads Light Treads Light Treads Wheel Subdweller Monowheel Heat Sink Improved Heat Sink Large Storage Unit High-capacity Matter Pod Subdweller Optics ECM Suite Weapon Shielding Subdweller Laser Subdweller Laser Subdweller Shrapnel Launcher Mining Laser Multitool Scrap Shield Fragment Scrap Shield Fragment Scrap Shield Fragment Scrap Shield Fragment Scrap Shield Fragment Scrap Shield Fragment Scrap Shield Fragment [Rating: 16] Favorites ----------- Power Ion Engine Engine Ion Engine Power Core Light Nuclear Core Propulsion Light Treads Treads Light Treads Wheel Subdweller Monowheel Utility Seismic Detector Device Seismic Detector Storage Large Storage Unit Protection Weapon Shielding Weapon EM Pulse Gun Energy Gun EM Pulse Gun Ballistic Gun Assault Rifle Special Weapon Mining Laser Build | -11 -10 -10 ------- Run | Yrd Mat Sub Slots Evolved . | . . . Power . | . . . Propulsion . | . . . Utility . | . . . Weapon . | . . . Parts Attached 20 | 7 4 9 Power 4 | 1 . 3 Engine 3 | 1 . 2 Core 1 | . . 1 Reactor . | . . . Propulsion 4 | 2 . 2 Treads 3 | 2 . 1 Leg . | . . . Wheel 1 | . . 1 Hover . | . . . Flight . | . . . Utility 5 | 2 2 1 Device 1 | 1 . . Storage 3 | 1 2 . Processor . | . . . Hackware . | . . . Protection 1 | . . 1 Artifact . | . . . Weapon 7 | 2 2 3 Energy Gun 3 | . 1 2 Energy Cannon . | . . . Ballistic Gun 2 | 2 . . Ballistic Cannon . | . . . Launcher . | . . . Special Weapon 2 | . 1 1 Impact Weapon . | . . . Slashing Weapon . | . . . Piercing Weapon . | . . . Special Melee Weapon . | . . . Unidentified Prototypes . | . . . Parts Lost 9 | . . 9 Power 4 | . . 4 Propulsion 1 | . . 1 Utility . | . . . Weapon 4 | . . 4 Highest Loss Streak 4 | . . 4 To Critical Strikes . | . . . Average Backups 13 | 1 11 16 Power 1 | . 2 1 Propulsion 2 | . 1 3 Utility 6 | . 5 7 Weapon 2 | 1 2 3 Tool/Special . | . . . Unused Backups 18 | . 4 14 Power 2 | . 2 . Propulsion 3 | . . 3 Utility 9 | . 2 7 Weapon 3 | . . 3 Tool/Special 1 | . . 1 Average Slot Usage (%) 99 | . 99 99 Engine 9 | . 14 6 Core 4 | . . 6 Treads 23 | . 28 20 Wheel 4 | . . 7 Device 13 | . 13 13 Storage 14 | . 14 14 Energy Gun 11 | . 12 11 Ballistic Gun 9 | . 14 5 Special Weapon 7 | . 1 10 Peak Build Rating 16 | 7 8 16 Average Rating 10 | 5 7 12 On Entrance 5 | . 7 8 Avg Prop Armor Cover (%) 13 | . . 13 Naked Turns . | . . . Heaviest Build 92 | 14 90 92 Greatest Support 40 | 40 40 40 Greatest Overweight (x) 4 | . 2 4 Average Overweight (x) 1 | . . 2 Largest Inventory Capacity 25 | 8 25 25 Average Capacity 17 | 6 14 20 Most Carried 25 | 4 15 25 Average Carried 16 | 1 11 19 Final Capacity 25 | 8 15 25 Final Carried 22 | 4 14 22 Class Distribution -------------------- 71% | Mutant 28% | Scavenger-Mutant Dominant Class ---------------- Mutant | -10/Materials Scavenger-Mutant | -10/Subcaves Resources | -11 -10 -10 ----------- Run | Yrd Mat Sub Matter Collected 720 | 274 244 202 Remotely . | . . . Salvage Created 610 | 119 354 137 Parts 38 | 10 19 9 Haulers Intercepted 1 | . 1 . Recyclers Shooed . | . . . Parts Field Recycled . | . . . Retrieved Matter . | . . . Parts Self-Destructed 3 | . . 3 Prevented . | . . . Parts Restored . | . . . Kills | -11 -10 -10 ------- Run | Yrd Mat Sub Combat Hostiles Destroyed 12 | . 7 5 Guns 7 | . 6 1 Cannons 3 | . . 3 AOE 1 | . 1 . Classes Destroyed 8 | 2 4 2 Tunneler 3 | 3 . . Hauler 1 | . 1 . Recycler 1 | 1 . . Watcher 2 | . 2 . Swarmer 5 | . 3 2 Grunt 4 | . 4 . Artisan 1 | . . 1 Subdweller 3 | . . 3 Best Kill Streak 3 | 2 3 2 Combat Bots Only 3 | . 3 2 Max Kills in Single Turn 1 | 1 1 1 Gunslinging . | . . . Exploded 1 | . 1 . Melee . | . . . Uniques/NPCs Destroyed . | . . . Combat | -11 -10 -10 -------- Run | Yrd Mat Sub Hostile Shots Fired 110 | . 37 73 Missed 31 | . 10 21 Hits 79 | . 27 52 Projectile 79 | . 27 52 Critical Strikes 2 | . 1 1 Damage Taken 1149 | . 271 878 Core 271 | . 25 246 Absorbed by Shields . | . . . Redirected to Shielding 13 | . . 13 Regen/Repaired (Parts) 19 | . 19 . Core Remaining (%) 100 | 100 . . Volleys Fired 99 | 7 42 50 Largest 2 | 2 2 2 Hottest 160 | 40 140 160 Shots Fired 155 | 14 64 77 Gun 111 | 14 51 46 Cannon . | . . . Launcher . | . . . Special 44 | . 13 31 Kinetic 72 | 14 38 20 Thermal 60 | . 13 47 Explosive . | . . . Electromagnetic 23 | . 13 10 Robot Hit Streak 28 | 5 6 28 Robot Miss Streak 3 | 2 3 3 Penetration Max . | . . . Secondary Targets 1 | . 1 . Max Gunslinging Chain 1 | . 1 . Shots Hit Robots 84 | 9 32 43 Core Hits 40 | 6 20 14 Critical Kills . | . . . Critical Parts Destroyed . | . . . Critical Strikes 3 | . . 3 Burn 3 | . . 3 Melee Attacks . | . . . Impact . | . . . Slashing . | . . . Piercing . | . . . Sneak Attacks . | . . . Combat Hostiles . | . . . Follow-up Attacks . | . . . Damage Inflicted 1060 | 87 418 555 Guns 910 | 87 379 444 Cannons . | . . . Explosions 39 | . 39 . Melee . | . . . Ramming 3 | . . 3 Kinetic 472 | 87 258 127 Thermal 394 | . 39 355 Explosive . | . . . Electromagnetic 191 | . 121 70 Impact . | . . . Slashing . | . . . Piercing . | . . . Highest Corruption 2 | . 2 2 Average Corruption 2 | . 2 2 Corruption Purged . | . . . Corruption Blocked . | . . . Effects 27 | . 1 26 Message Errors 9 | . 1 8 Matter Fused 7 | . . 7 Heat Flow Errors 5 | . . 5 Energy Discharges 1 | . . 1 Parts Rejected 1 | . . 1 Data Loss (minor) 2 | . . 2 Misfires 1 | . . 1 Alerts 1 | . . 1 Overload Shots . | . . . Overflow Damage . | . . . Projectiles . | . . . Explosions . | . . . Melee . | . . . Knockbacks . | . . . Impact . | . . . Kinetic . | . . . Secondary . | . . . Self-Inflicted Damage . | . . . Shots . | . . . Rammed 1 | . 1 . Targets Rammed 2 | . 1 1 Kicked . | . . . Crushed 1 | . . 1 Highest Temperature 245 | . 100 245 Average Temperature 44 | . 29 63 Received Heat Transfer 312 | . 99 213 Siege Activations . | . . . Martial Activations . | . . . Shielding Activations . | . . . Robots Disrupted . | . . . Combat Hostiles . | . . . Robots Corrupted . | . . . Combat Hostiles . | . . . Parts Fried . | . . . Impact Corruptions . | . . . Robots Melted 1 | . . 1 Combat Hostiles 1 | . . 1 Parts Melted 3 | . . 3 Heat Transferred 1580 | . . 1580 Parts Sabotaged . | . . . Parts Stolen . | . . . Parts Stripped . | . . . Power Chain Reactions 1 | . 1 . Alert | -11 -10 -10 ------- Run | Yrd Mat Sub Maximum Alert Level . | . . . Low Security (%) 100 | 100 100 . Level 1 . | . . . Level 2 . | . . . Level 3 . | . . . Level 4 . | . . . Level 5 . | . . . High Security . | . . . Max Security . | . . . Peak Influence 97 | 10 97 . Initial . | . . . Average 12 | 1 13 . Influence Increases 387 | 20 267 100 Destroy 0b10 Robot/C 180 | . 140 40 Destroy 0b10 Robot/NC 35 | 20 15 . Destroy Leader 36 | . 36 . Successful Hack 34 | . 34 . Disable Machine 15 | . 15 . Destroy Structure 12 | . 12 . Lose Combat Pursuer 75 | . 15 60 Influence Decreases 387 | 20 267 100 Time Decay 310 | 20 200 90 Lost Part 10 | . . 10 Purge Threat 67 | . 67 . Squads Dispatched . | . . . Investigation . | . . . Extermination . | . . . Reinforcement . | . . . Assault . | . . . Garrison . | . . . Intercept . | . . . Searches Triggered . | . . . Construction Impeded . | . . . Haulers Reinforced . | . . . Active Scanning Responses . | . . . Cargo Convoy Interrupts . | . . . Stealth | -11 -10 -10 --------- Run | Yrd Mat Sub Distress Signals 1 | . 1 . Communications Jammed . | . . . Distress Signals . | . . . Times Spotted 26 | . 16 10 Peak Tracking Total 4 | . 4 4 Tactical Retreats 4 | . 1 3 Traps | -11 -10 -10 ------- Run | Yrd Mat Sub Traps Triggered 1 | . 1 . Indirectly . | . . . Trap Hack Attempts . | . . . Triggered . | . . . Disarmed . | . . . Reprogrammed . | . . . Reused . | . . . Traps Extracted . | . . . Installed . | . . . Triggered . | . . . Machines | -11 -10 -10 ---------- Run | Yrd Mat Sub Machines Disabled 1 | . 1 . Max in Single Turn 1 | . 1 . Machines Repaired . | . . . Machines Dismantled . | . . . Machines Sabotaged . | . . . Overloaded Fab Kills . | . . . Hacking | -11 -10 -10 --------- Run | Yrd Mat Sub Machines Accessed 11 | . 11 . Terminals 8 | . 8 . Fabricators . | . . . Repair Stations 1 | . 1 . Recycling Units 2 | . 2 . Scanalyzers . | . . . Garrison Access . | . . . Total Hacks 32 | . 32 . Successful 13 | . 13 . Failed 18 | . 18 . Catastrophic . | . . . Database Lockouts 1 | . 1 . Manual 11 | . 11 . Terminals 27 | . 27 . Fabricators . | . . . Repair Stations 2 | . 2 . Recycling Units 3 | . 3 . Scanalyzers . | . . . Garrison Access . | . . . Terminal Hacks 6 | . 6 . Part Schematic 1 | . 1 . Unreport Threat 1 | . 1 . Locate Traps 2 | . 2 . Hauler Manifests 2 | . 2 . Fabricator Hacks . | . . . Repair Station Hacks 2 | . 2 . Scan Component 1 | . 1 . Repair 1 | . 1 . Recycling Unit Hacks 2 | . 2 . Retrieve Components 2 | . 2 . Scanalyzer . | . . . Garrison Access Hacks . | . . . Unauthorized Hacks 3 | . 3 . Terminals 3 | . 3 . Botnet 3 | . 3 . Fabricators . | . . . Repair Stations . | . . . Recycling Units . | . . . Scanalyzers . | . . . Garrison Access . | . . . Data Cores Recovered . | . . . Used . | . . . Hacking Detections 10 | . 10 . Full Trace Events . | . . . Feedback Events . | . . . Feedback Blocked . | . . . Robot Schematics Acquired . | . . . Robots Built . | . . . Authchips . | . . . Time . | . . . Total Robot Build Rating . | . . . Part Schematics Acquired 1 | . 1 . Parts Built . | . . . Authchips . | . . . Time . | . . . Total Part Build Rating . | . . . Part Studies Acquired . | . . . Parts Repaired 1 | . 1 . Time 26 | . 26 . Parts Recycled . | . . . Recycled Matter . | . . . Retrieved Matter . | . . . Retrieved Components 8 | . 8 . Parts Scanalyzed . | . . . Part Schematics Acquired . | . . . Parts Damaged . | . . . Bothacking | -11 -10 -10 ------------ Run | Yrd Mat Sub Used RIF Installer . | . . . Robots Hacked . | . . . Non-combat . | . . . Combat . | . . . Robot Hacks Applied . | . . . Relay Couplers Released . | . . . Fabnet Peak Effective % . | . . . Robots Rewired . | . . . Allies Hacked . | . . . Hacks Repelled . | . . . Allies | -11 -10 -10 -------- Run | Yrd Mat Sub Total Allies . | . . . Largest Group . | . . . Highest-Rated Group . | . . . Highest-Rated Ally . | . . . Total Orders . | . . . Ally Attacks . | . . . Total Damage . | . . . Kills . | . . . Allies Corrupted . | . . . Allies Melted . | . . . Intel | -11 -10 -10 ------- Run | Yrd Mat Sub Active Infowar (turns) 3468 | 37 1378 2053 Seismic 3468 | 37 1378 2053 Robot Analysis Total . | . . . Derelict Logs Recovered . | . . . Drone Launches . | . . . Drone Recoveries . | . . . Exploration | -11 -10 -10 ------------- Run | Yrd Mat Sub Turns Passed 3645 | 114 1419 2112 Spaces Moved 1893 | 52 644 1197 Core 2 | 2 . . Treads 1220 | 50 644 526 Legs . | . . . Wheels 671 | . . 671 Hover . | . . . Flight . | . . . Fastest Speed 50 | 50 160 150 Average Speed 156 | 155 160 154 Slowest Speed 320 | 160 320 320 Overloaded Moves . | . . . Propulsion Burnouts . | . . . Robots Hopped . | . . . Potential Cave-ins . | . . . Cave-ins Triggered . | . . . Exploration Rate (%) 49 | 5 84 60 Regions Visited 2 Branch Regions 1 Pre-discovered Areas . | . . . Known Exits Taken . | . . . Unknown Exits Taken 2 | 1 1 . Scrap Searched . | . . . Spaces Dug 7 | . 7 . Terrain Destroyed 16 | . 16 . Melee . | . . . Projectile 13 | . 13 . AOE 3 | . 3 . Terrain Rammed . | . . . Walls Destroyed . | . . . Machines Disabled . | . . . Actions | -11 -10 -10 --------- Run | Yrd Mat Sub Total 2337 | 69 939 1329 Wait 251 | . 216 35 Move 1891 | 51 643 1197 Hop . | . . . Pick Up 37 | 4 14 19 Fast Attach 10 | 7 2 1 Attach 10 | . 1 9 Detach 3 | . 2 1 Swap 25 | . 12 13 Drop 9 | . 6 3 Fire 99 | 7 42 50 Melee . | . . . Ram . | . . . Kick . | . . . Crush 2 | . 1 1 Escape Stasis . | . . . Rewire . | . . . Trap . | . . . Miscellaneous . | . . . Route ------- -11/Scrapyard -10/Materials (discovered 4 exits: [*Mat x3] / [*Sub]) -10/Subcaves (discovered 2 exits: [*Mat] / [*Scr]) History --------- Turn | Location | Event 43 | -11/Scrapyard | Discovered new exit (range 15) 115 | -11/Scrapyard | Entered Materials 323 | -10/Materials | Build established: Mutant 528 | -10/Materials | Discovered new exit (range 5) 621 | -10/Materials | Repaired Seismic Detector 700 | -10/Materials | Discovered new exit (range 14) 797 | -10/Materials | Central database locked down 1102 | -10/Materials | Discovered new exit (range 13) 1443 | -10/Materials | Discovered new exit (range 10) 1534 | -10/Materials | Entered Subcaves 1535 | -10/Subcaves | Approached by a straggling Scientist 1563 | -10/Subcaves | A swath of the cavern ceiling suddenly collapsed 1820 | -10/Subcaves | Scientist uncovered a shortcut to Scraptown 2351 | -10/Subcaves | Shifting Twisted Machinery released Sub. Shrapnel Launcher 2548 | -10/Subcaves | Ambushed by angry Subdweller bent on revenge 2615 | -10/Subcaves | Discovered new exit (range 7) 2882 | -10/Subcaves | Build established: Scavenger-Mutant 2950 | -10/Subcaves | A swath of the cavern ceiling suddenly collapsed 3615 | -10/Subcaves | Core integrity fell below 50% 3635 | -10/Subcaves | Core integrity fell below 20% 3646 | -10/Subcaves | Destroyed by JK-NF1(R) with Subdweller Beam Cannon Last Messages --------------- 02858_ System corrupted: FCS attempts to trigger Sub. Laser. 02858_ System corrupted: Sub. Laser misfires. A swath of the cavern ceiling suddenly collapses. 02982_ System corrupted: Matter fused (-10). 03016_ System corrupted: Matter fused (-5). 03057_ AH26JHG JFUDUMTZP4#BB >BGVA 03267_ System corrupted: Matter fused (-5). 03303_ Dropped Scrap Shield Fragment. 03303_ Acquired Sub. Machine Gun. 03315_ System corrupted: Component data lost. 03486_ LFH6PF2FC5333 M#359SPX 03511_ J8WANKUXU7EUEQZTLT&& 03576_ System corrupted: Matter fused (-7). 03618_ Flamer destroyed. 03620_ Lgt. Nuclear Core destroyed. 03626_ Lgt. Treads destroyed. 03630_ Sub. Power Source destroyed. 03632_ PD-AO9(R) destroyed. 03633_ Subatomizers dissect the Sub. Power Source. 03637_ JK-NF1(R) affixes Scrap Shield Fragment to Scrap Shield. Map ----- +----------------------------------------------------+ | ?????????????????????????????????????????????????? | | ?????????????????????????????????????????????????? | | ?????????????????????????????????????????????????? | | ?????????????????????????????????????????????????? | | ?????????????????????????????????????????????????? | | ?????????????????????????????????????????????????? | | ?????????????????????????????????????????????????? | | ????????????????????????????????????????????????? | | ???????????????????????????????????????????????? | | ???????????????????????????????????????????????? | | ???????????????????????????????????????????????? | | ????????????????????????????????????????????????? | | ?????????????????????????????????????????????????? | | ?????????????????????????????????????????????????? | | ?????????????????????????????????????????????????? | | ?????????????????????????????????????????????????? | | ?????????????????????????????????????????????????? | | ?????????????????????????????????????????????????? | | ???????????????????"""???????????????????????????# | | ????????????????????""??????????????????#####????# | | ???????????????????? "????????????????## ###?## | | ???????????????????" ";#?###??????????## ### | | ???????????????????" #";##"##?????????# | | ???????????????????"" "" " #????????## | | ???????????????????#" "" ##???????# | | ????????????????????????#@& #######?# ## | | ????????????????????# ###R* # ### ## ##? | | ????????????????????# #### ###?? | | ???????????????????# #??######? | | ???????????????? ### ### ##??### ## | | ??????????????# ## #?######?### | | ??????????????? ## # #??????### | | ???????????????#???##### # #?????## | | ???????????????????????# ## ?????# | | ??????????????????????? #### #?????# ## | | ??????????????????????## ??? ?????## ## | | ??????????????????????? #??? #??????# ###### | | ??????????????????????? ???? ???????## #????## | | ?????????????????????? ????# ????????####?????? | | ?????????????????????? ????? ?????????????????? | | ???????????????????????? ?????? ?????????????????? | | ??????????????????????????????? ?????????????????? | | ??????????????????????????????? ?????????????????? | | ??????????????????????????????? ?????????????????? | | ?????????????????????????????????????????????????? | | ?????????????????????????????????????????????????? | | ?????????????????????????????????????????????????? | | ?????????????????????????????????????????????????? | | ?????????????????????????????????????????????????? | | ?????????????????????????????????????????????????? | +----------------------------------------------------+ Best States ------------- Heat Dissipation 25 Energy Generation 15 Energy Capacity 250 Matter Stores 300 Matter Capacity 300 Sight Range 16 Terrain Scan Density 10 Weapon Shielding 33 Evasion (%) 40 Recoil Reduction 2 Item Schematics ----------------- Med. Storage Unit | -10/Materials | Hacked Robot Schematics ------------------ None Fabricated ------------ Nothing Repaired ---------- Seismic Detector | 5% | -10/Materials Studied --------- None Alien Tech Used ----------------- None Achievements -------------- DATA ERROR: Steam Global Achievement% For Emergencies Only Nice Directions, Buddy Organ Harvest There's More Where That Came From Challenges ------------ None Game ------ Seed InsulatedMetamassLauncher Manual? 0 Play Time 00:30:16 Cumulative 174.8 hours Start 2025.10.25 @ 21:10:29 End 2025.10.25 @ 21:41:13 Sessions 1 Manual Loads 0 Difficulty Rogue Special Mode None Game No. 58 Rogue 58 Adventurer 0 Explorer 0 Win Type - Total 1 Types 1/0/0/0/0/0/0/0/0/0 Lore% 47 Gallery% 46 Achievement% 27 Wizard Run 0 Options --------- Layout 0 ASCII 1 Keyboard 1 Movement Arrows Keybinds 0 Fullscreen 1 Font 24/Smallcaps Map View 76x50 Zoom Use 0% Tactical HUD 1 Map Filters NONE Filters NONE Steam 1 RUN: 41761c17-392c-4943-9bfe-9ade2814572e